{"text_format":"1","workbook":"xlsx","n_sheets":4,"sheets":["Base","Lista","Hoja1","Hoja3"],"not_rendered":{"charts":0,"images":3,"macros":1,"external_links":1,"defined_names":6,"comments":0,"pivot_tables":0},"unopened":[],"bounds":{"document_bytes":16777216,"sheet_cells":100000,"rows_first":2000,"rows_last":500,"rows_between":2000,"halvings":0,"cell_chars":16384,"cell_head_chars":4096},"cells_cut":0,"cells_raw":0,"read":"whole","date_system":"1900"}

{"sheet":"Base","index":0,"n_rows":20,"n_cols":12,"rows_kept":20,"cut":false,"hidden":false,"merged":[[10,5,10,6],[10,7,10,8],[0,0,0,9],[1,0,1,9],[9,0,9,1],[9,2,9,3],[4,0,6,9],[8,0,8,1],[8,2,8,3],[10,0,10,1],[10,2,10,3]]}
["SOLICITUD DE VACACIONES"]
["DIRECCIÓN DE TALENTO HUMANO"]
[]
[]
["Instrucciones: \n\n\n\n\n\n1. En la casilla \"Disfruta de vacaciones \"seleccione\" según sea el caso SI o NO: trabajadores que disfrutarán de vacaciones colectivas, trabajadores que disfrutaran en fechas diferentes y trabajadores que no disfrutarán de vacaciones  \n2. Si los funcionarios de su área van a disfrutar vacaciones colectivas por favor seleccionar la opción \"SI\" en la casilla \"vacaciones colectivas\" Automáticamente aparecerá la fecha del 12/12/2024 al 03/01/2025\n3. Si va disfrutar vacaciones en fechas diferentes a las colectivas, deberá seleccionar la opción \"NO\" (En la casilla \"vacaciones colectivas\" ) y registrar las fechas, tenga en cuenta que el minímo del disfrute son 6 días y máximo 15 días\n4. Las vacaciones deben ser consecutivas, no se podrán fraccionar en diferentes fechas. \n5. Una vez diligenciado el formato remitir al correo correspondenciarh@uexternado.edu.co"]
[]
[]
[]
["Fecha de la solicitud"]
["Unidad Académica/Administrativa",null,"Seleccione…"]
["Unidad",null,"Seleccione…",null,null,"Vacaciones Colectivas",null,"Vacaciones Diferentes a las Colectivas"]
["Clase de identificación","Número de identificación","Apellidos y Nombres","Disfruta de vacaciones","vacaciones colectivas","Fecha de inicio de vacaciones","Fecha Fin de vacaciones","Fecha de inicio de vacaciones2","Fecha Fin de vacaciones3","Cantidad días2","Aux","Observaciones"]
["C.C",null,null,null,null,null,null,null,null,{"$f":"IF(Tabla1[[#This Row],[vacaciones colectivas]]=\"SI\",NETWORKDAYS.INTL(Tabla1[[#This Row],[Fecha de inicio de vacaciones]],Tabla1[[#This Row],[Fecha Fin de vacaciones]],1,Hoja3!$A$3:$A$157),NETWORKDAYS.INTL(Tabla1[[#This Row],[Fecha de inicio de vacaciones2]],Tabla1[[#This Row],[Fecha Fin de vacaciones3]],1,Hoja3!$A$3:$A$157))","v":0},{"$f":"+COUNTIFS(Tabla1[Número de identificación],Tabla1[[#This Row],[Número de identificación]])","v":0}]
["C.C",null,null,null,null,{"$f":"+IF(Tabla1[[#This Row],[vacaciones colectivas]]=\"Si\", \"12/12/2024\",\"\")","v":""},{"$f":"+IF(Tabla1[[#This Row],[vacaciones colectivas]]=\"Si\", \"03/01/2025\",\"\")","v":""},null,null,{"$f":"IF(Tabla1[[#This Row],[vacaciones colectivas]]=\"SI\",NETWORKDAYS.INTL(Tabla1[[#This Row],[Fecha de inicio de vacaciones]],Tabla1[[#This Row],[Fecha Fin de vacaciones]],1,Hoja3!$A$3:$A$157),NETWORKDAYS.INTL(Tabla1[[#This Row],[Fecha de inicio de vacaciones2]],Tabla1[[#This Row],[Fecha Fin de vacaciones3]],1,Hoja3!$A$3:$A$157))","v":0},{"$f":"+COUNTIFS(Tabla1[Número de identificación],Tabla1[[#This Row],[Número de identificación]])","v":0}]
["C.C",null,null,null,null,{"$f":"+IF(Tabla1[[#This Row],[vacaciones colectivas]]=\"Si\", \"12/12/2024\",\"\")","v":""},{"$f":"+IF(Tabla1[[#This Row],[vacaciones colectivas]]=\"Si\", \"03/01/2025\",\"\")","v":""},null,null,{"$f":"IF(Tabla1[[#This Row],[vacaciones colectivas]]=\"SI\",NETWORKDAYS.INTL(Tabla1[[#This Row],[Fecha de inicio de vacaciones]],Tabla1[[#This Row],[Fecha Fin de vacaciones]],1,Hoja3!$A$3:$A$157),NETWORKDAYS.INTL(Tabla1[[#This Row],[Fecha de inicio de vacaciones2]],Tabla1[[#This Row],[Fecha Fin de vacaciones3]],1,Hoja3!$A$3:$A$157))","v":0},{"$f":"+COUNTIFS(Tabla1[Número de identificación],Tabla1[[#This Row],[Número de identificación]])","v":0}]
["C.C",null,null,null,null,{"$f":"+IF(Tabla1[[#This Row],[vacaciones colectivas]]=\"Si\", \"12/12/2024\",\"\")","v":""},{"$f":"+IF(Tabla1[[#This Row],[vacaciones colectivas]]=\"Si\", \"03/01/2025\",\"\")","v":""},null,null,{"$f":"IF(Tabla1[[#This Row],[vacaciones colectivas]]=\"SI\",NETWORKDAYS.INTL(Tabla1[[#This Row],[Fecha de inicio de vacaciones]],Tabla1[[#This Row],[Fecha Fin de vacaciones]],1,Hoja3!$A$3:$A$157),NETWORKDAYS.INTL(Tabla1[[#This Row],[Fecha de inicio de vacaciones2]],Tabla1[[#This Row],[Fecha Fin de vacaciones3]],1,Hoja3!$A$3:$A$157))","v":0},{"$f":"+COUNTIFS(Tabla1[Número de identificación],Tabla1[[#This Row],[Número de identificación]])","v":0}]
["C.C",null,null,null,null,{"$f":"+IF(Tabla1[[#This Row],[vacaciones colectivas]]=\"Si\", \"12/12/2024\",\"\")","v":""},{"$f":"+IF(Tabla1[[#This Row],[vacaciones colectivas]]=\"Si\", \"03/01/2025\",\"\")","v":""},null,null,{"$f":"IF(Tabla1[[#This Row],[vacaciones colectivas]]=\"SI\",NETWORKDAYS.INTL(Tabla1[[#This Row],[Fecha de inicio de vacaciones]],Tabla1[[#This Row],[Fecha Fin de vacaciones]],1,Hoja3!$A$3:$A$157),NETWORKDAYS.INTL(Tabla1[[#This Row],[Fecha de inicio de vacaciones2]],Tabla1[[#This Row],[Fecha Fin de vacaciones3]],1,Hoja3!$A$3:$A$157))","v":0},{"$f":"+COUNTIFS(Tabla1[Número de identificación],Tabla1[[#This Row],[Número de identificación]])","v":0}]
["C.C",null,null,null,null,{"$f":"+IF(Tabla1[[#This Row],[vacaciones colectivas]]=\"Si\", \"12/12/2024\",\"\")","v":""},{"$f":"+IF(Tabla1[[#This Row],[vacaciones colectivas]]=\"Si\", \"03/01/2025\",\"\")","v":""},null,null,{"$f":"IF(Tabla1[[#This Row],[vacaciones colectivas]]=\"SI\",NETWORKDAYS.INTL(Tabla1[[#This Row],[Fecha de inicio de vacaciones]],Tabla1[[#This Row],[Fecha Fin de vacaciones]],1,Hoja3!$A$3:$A$157),NETWORKDAYS.INTL(Tabla1[[#This Row],[Fecha de inicio de vacaciones2]],Tabla1[[#This Row],[Fecha Fin de vacaciones3]],1,Hoja3!$A$3:$A$157))","v":0},{"$f":"+COUNTIFS(Tabla1[Número de identificación],Tabla1[[#This Row],[Número de identificación]])","v":0}]
["C.C",null,null,null,null,{"$f":"+IF(Tabla1[[#This Row],[vacaciones colectivas]]=\"Si\", \"12/12/2024\",\"\")","v":""},{"$f":"+IF(Tabla1[[#This Row],[vacaciones colectivas]]=\"Si\", \"03/01/2025\",\"\")","v":""},null,null,{"$f":"IF(Tabla1[[#This Row],[vacaciones colectivas]]=\"SI\",NETWORKDAYS.INTL(Tabla1[[#This Row],[Fecha de inicio de vacaciones]],Tabla1[[#This Row],[Fecha Fin de vacaciones]],1,Hoja3!$A$3:$A$157),NETWORKDAYS.INTL(Tabla1[[#This Row],[Fecha de inicio de vacaciones2]],Tabla1[[#This Row],[Fecha Fin de vacaciones3]],1,Hoja3!$A$3:$A$157))","v":0},{"$f":"+COUNTIFS(Tabla1[Número de identificación],Tabla1[[#This Row],[Número de identificación]])","v":0}]
["T.I",null,null,null,null,{"$f":"+IF(Tabla1[[#This Row],[vacaciones colectivas]]=\"Si\", \"12/12/2024\",\"\")","v":""},{"$f":"+IF(Tabla1[[#This Row],[vacaciones colectivas]]=\"Si\", \"03/01/2025\",\"\")","v":""},null,null,{"$f":"IF(Tabla1[[#This Row],[vacaciones colectivas]]=\"SI\",NETWORKDAYS.INTL(Tabla1[[#This Row],[Fecha de inicio de vacaciones]],Tabla1[[#This Row],[Fecha Fin de vacaciones]],1,Hoja3!$A$3:$A$157),NETWORKDAYS.INTL(Tabla1[[#This Row],[Fecha de inicio de vacaciones2]],Tabla1[[#This Row],[Fecha Fin de vacaciones3]],1,Hoja3!$A$3:$A$157))","v":0},{"$f":"+COUNTIFS(Tabla1[Número de identificación],Tabla1[[#This Row],[Número de identificación]])","v":0}]

{"sheet":"Lista","index":1,"n_rows":83,"n_cols":10,"rows_kept":83,"cut":false,"hidden":true,"merged":[]}
[null,"Unidad Organizativa1",null,null,null,"Clase de documentos",null,"Unidad","Unidades_Academicas","Unidades_Administrativas"]
[null,"Asociación de Antiguos Alumnos",null,null,null,"Seleccione…",null,"Seleccione…","Centro de Estudios sobre Genética y Derecho","Asociación de Antiguos Alumnos"]
[null,"Becario",null,null,null,"C.C",null,"Unidades_Academicas","Centro de Investigación en Filosofía y Derecho","Biblioteca"]
[null,"Biblioteca",null,null,null,"C.E",null,"Unidades_Administrativas","Centro de Investigación en Política Criminal","Casa Externadista"]
[null,"Casa Externadista",null,null,null,"T.I",null,null,"Consultorio Jurídico","Centro de Idiomas y Cultura"]
[null,"Centro de Idiomas ",null,null,null,"P.E",null,null,"Departamento de Derecho Administrativo","Dirección de Promoción y Mercadeo / Centro de Información y Soluciones Externadista - CISE / Contact Center – Outbound "]
[null,"Centro de Información de la Secretaría General",null,null,null,null,null,null,"Departamento de Derecho Civil","Departamento de Bienestar Universitario"]
[null,"Centro de Investigación en Filosofía y Derecho",null,null,null,null,null,null,"Departamento de Derecho Comercial","Departamento de Publicaciones"]
[null,"Centro de Investigación en Política Criminal",null,null,null,null,null,null,"Departamento de Derecho Constitucional","Dirección Académica"]
[null,"Consultorio Jurídico",null,null,null,null,null,null,"Departamento de Derecho de las Telecomunicaciones","Dirección Administrativa"]
[null,"Departamento de Bienestar Universitario",null,null,null,null,null,null,"Departamento de Derecho de los Negocios","Dirección de Admisiones, Registro y Control Académico"]
[null,"Departamento de Derecho Administrativo",null,null,null,null,null,null,"Departamento de Derecho del Medio Ambiente","Dirección de Eventos"]
[null,"Departamento de Derecho Civil",null,null,null,null,null,null,"Departamento de Derecho del Transporte y de la Infraestructura del Transporte","Dirección de Extensión Universitaria"]
[null,"Departamento de Derecho Comercial",null,null,null,null,null,null,"Departamento de Derecho Económico","Dirección de Innovación Educativa Digital"]
[null,"Departamento de Derecho Constitucional",null,null,null,null,null,null,"Departamento de Derecho Financiero y Bursátil","Dirección de Internacionalización y Relaciones Externas"]
[null,"Departamento de Derecho de la Seguridad Social y Mercado del Trabajo",null,null,null,null,null,null,"Departamento de Derecho Fiscal","Dirección de Promoción y Mercadeo"]
[null,"Departamento de Derecho de las Telecomunicaciones",null,null,null,null,null,null,"Departamento de Derecho Laboral y de Seguridad Social","Dirección de Talento Humano"]
[null,"Departamento de Derecho de los Negocios",null,null,null,null,null,null,"Departamento de Derecho Minero Energético","Dirección Financiera"]
[null,"Departamento de Derecho del Medio Ambiente",null,null,null,null,null,null,"Departamento de Derecho Penal","Dirección Administrativa / Jefatura de Compras y Proveeduría"]
[null,"Departamento de Derecho del Transporte y de la infraestructura del transporte",null,null,null,null,null,null,"Departamento de Derecho Procesal","Dirección Administrativa / Jefatura de Planta Física"]
[null,"Departamento de Derecho Económico",null,null,null,null,null,null,"Departamento de Derecho Romano","Dirección Administrativa / Jefatura de Seguridad"]
[null,"Departamento de Derecho Financiero y Bursátil",null,null,null,null,null,null,"Departamento de la Propiedad Intelectual","Dirección Administrativa / Jefatura de Servicios de Apoyo"]
[null,"Departamento de Derecho Fiscal",null,null,null,null,null,null,"Departamento de Matemáticas","Dirección Académica / Oficina de Aseguramiento de la Calidad de la Secretaría General"]
[null,"Departamento de Derecho Informático",null,null,null,null,null,null,"Departamento de Posgrados de la Facultad de Derecho","Oficina de Comunicaciones y Prensa"]
[null,"Departamento de Derecho Laboral",null,null,null,null,null,null,"Departamento de Riesgos y Seguros","Oficina de Egresados"]
[null,"Departamento de Derecho Minero Energético",null,null,null,null,null,null,"Doctorado en Derecho","Oficina de Gestión de Riesgos, Cumplimiento y Procesos"]
[null,"Departamento de Derecho Penal",null,null,null,null,null,null,"Facultad de Administración de Empresas","Oficina Jurídica"]
[null,"Departamento de Derecho Procesal",null,null,null,null,null,null,"Facultad de Administración de Empresas Turísticas y Hoteleras","Rectoría"]
[null,"Departamento de Derecho Romano",null,null,null,null,null,null,"Facultad de Ciencias de la Educación","Lux non occidat: Museo y Archivo Histórico"]
[null,"Departamento de la Propiedad Intelectual",null,null,null,null,null,null,"Facultad de Ciencias Sociales y Humanas","Secretaría General"]
[null,"Departamento de Matemáticas",null,null,null,null,null,null,"Facultad de Comunicación Social - Periodismo","Unidad de Género"]
[null,"Departamento de Posgrados de la Facultad de Derecho - Extensión Barranquilla",null,null,null,null,null,null,"Facultad de Contaduría Pública","Dirección Financiera / Contabilidad"]
[null,"Departamento de Posgrados de la Facultad de Derecho - Extensión Bucaramanga",null,null,null,null,null,null,"Facultad de Derecho","Dirección Financiera / Facturación y Apoyo Financiero"]
[null,"Departamento de Posgrados de la Facultad de Derecho - Extensión Cali",null,null,null,null,null,null,"Facultad de Economía","Dirección Financiera / Planeación Financiera y Gestión de la Información"]
[null,"Departamento de Posgrados de la Facultad de Derecho - Extensión Cartagena",null,null,null,null,null,null,"Facultad de Estudios del Patrimonio Cultural","Dirección Financiera / Presupuesto, Análisis y Control Financiero"]
[null,"Departamento de Posgrados de la Facultad de Derecho - Extensión Cúcuta",null,null,null,null,null,null,"Facultad de Finanzas, Gobierno y Relaciones Internacionales","Dirección Financiera / Tesorería"]
[null,"Departamento de Posgrados de la Facultad de Derecho - Extensión Medellín",null,null,null,null,null,null,"Instituto de Estudios Interdisciplinarios","Dirección de Promoción y Mercadeo / Centro de Información y Soluciones Externadista - CISE"]
[null,"Departamento de Posgrados de la Facultad de Derecho - Extensión Pasto",null,null,null,null,null,null,"Observatorio de Sociedad, Gobierno y Tecnologías de la Información","Dirección Administrativa / Jefatura de Librería"]
[null,"Departamento de Posgrados de la Facultad de Derecho - Extensión Pereira",null,null,null,null,null,null,"Secretaría Académica de la Facultad de Derecho","Dirección de Talento Humano / Compensación y Registro"]
[null,"Departamento de Posgrados de la Facultad de Derecho - Extensión Tunja",null,null,null,null,null,null,"Unidad de Apoyo a la Investigación","Dirección de Talento Humano / Contratación"]
[null,"Departamento de Posgrados de la Facultad de Derecho - Extensión Villavicencio",null,null,null,null,null,null,"Departamento de Posgrados de la Facultad de Derecho - Extensión Barranquilla","Dirección de Talento Humano / Desarrollo de Personal"]
[null,"Departamento de Publicaciones",null,null,null,null,null,null,"Departamento de Posgrados de la Facultad de Derecho - Extensión Bucaramanga","Dirección de Talento Humano / Seguridad y Salud en el Trabajo"]
[null,"Departamento de Riesgos y Seguros",null,null,null,null,null,null,"Departamento de Posgrados de la Facultad de Derecho - Extensión Cali","Dirección de Transformación Digital"]
[null,"Dirección Académica",null,null,null,null,null,null,"Departamento de Posgrados de la Facultad de Derecho - Extensión Cartagena","Dirección de Transformación Digital / Banner Mejoras Posgrado"]
[null,"Dirección Administrativa",null,null,null,null,null,null,"Departamento de Posgrados de la Facultad de Derecho - Extensión Cúcuta","Dirección de Transformación Digital / Dirección"]
[null,"Dirección de Admisiones, promoción y divulgación",null,null,null,null,null,null,"Departamento de Posgrados de la Facultad de Derecho - Extensión Medellín","Dirección de Transformación Digital / Jefatura de Experiencia y Servicios"]
[null,"Dirección de Eventos",null,null,null,null,null,null,"Departamento de Posgrados de la Facultad de Derecho - Extensión Pasto","Dirección de Transformación Digital / Jefatura de Infraestructura y Seguridad"]
[null,"Dirección de Extensión Universitaria",null,null,null,null,null,null,"Departamento de Posgrados de la Facultad de Derecho - Extensión Pereira","Dirección de Transformación Digital / Jefatura de Innovación Tecnológica"]
[null,"Dirección de Innovación Educativa Digital",null,null,null,null,null,null,"Departamento de Posgrados de la Facultad de Derecho - Extensión Tunja","Dirección de Transformación Digital / Servicios de Aplicaciones"]
[null,"Dirección de Internacionalización y Relaciones Externas",null,null,null,null,null,null,"Departamento de Posgrados de la Facultad de Derecho - Extensión Villavicencio","Secretaría General / Gobierno de datos y gestión de la información digital"]
[null,"Dirección de Posgrados de la Facultad de Derecho"]
[null,"Dirección de Registro Académico"]
[null,"Dirección de Talento Humano "]
[null,"Dirección de Transformación Digital"]
[null,"Dirección Financiera"]
[null,"Doctorado en Derecho"]
[null,"Facultad de Administración de Empresas"]
[null,"Facultad de Administración de Empresas Turísticas y Hoteleras"]
[null,"Facultad de Ciencias de la Educación"]
[null,"Facultad de Ciencias Sociales y Humanas"]
[null,"Facultad de Comunicación Social - Periodismo"]
[null,"Facultad de Contaduría Pública"]
[null,"Facultad de Derecho"]
[null,"Facultad de Economía"]
[null,"Facultad de Estudios del Patrimonio Cultural"]
[null,"Facultad de Finanzas, Gobierno y Relaciones Internacionales"]
[null,"Instituto de Estudios Interdisciplinarios"]
[null,"Jefatura de Compras y Proveeduría"]
[null,"Jefatura de Jardinería"]
[null,"Jefatura de Planta Física"]
[null,"Jefatura de Seguridad"]
[null,"Jefatura de Servicios de Apoyo"]
[null,"Museo y Archivo Histórico Lux Non Occidat"]
[null,"Observatorio de Sociedad, Gobierno y Tecnologías de la Información"]
[null,"Oficina de Aseguramiento de la Calidad de la Secretaría General"]
[null,"Oficina de Comunicaciones y Prensa"]
[null,"Oficina de Egresados"]
[null,"Oficina Jurídica"]
[null,"Rectoría"]
[null,"Secretaría Académica de la Facultad de Derecho"]
[null,"Secretaría General"]
[null,"Unidad de Apoyo a la Investigación"]
[null,"Unidad de Género"]

{"sheet":"Hoja1","index":2,"n_rows":51,"n_cols":12,"rows_kept":51,"cut":false,"hidden":true,"merged":[]}
[]
[null,null,"Académica","Administrativa","gg"]
[null,null,"Centro de Estudios sobre Genética y Derecho","Asociación de Antiguos Alumnos",null,null,null,"Asociación de Antiguos Alumnos"]
[null,null,"Centro de Investigación en Filosofía y Derecho","Biblioteca",null,null,null,"Biblioteca",null,null,null,"Departamento de Posgrados de la Facultad de Derecho - Extensión Barranquilla"]
[null,null,"Centro de Investigación en Política Criminal","Casa Externadista",null,null,null,"Centro de Información y Soluciones Externadista - CISE",null,null,null,"Departamento de Posgrados de la Facultad de Derecho - Extensión Bucaramanga"]
[null,null,"Consultorio Jurídico","Centro de Idiomas y Cultura",null,null,null,"Centro de Información y Soluciones Externadista - CISE / Contact Center – Outbound ",null,null,null,"Departamento de Posgrados de la Facultad de Derecho - Extensión Cali"]
[null,null,"Departamento de Derecho Administrativo","Dirección de Promoción y Mercadeo / Centro de Información y Soluciones Externadista - CISE / Contact Center – Outbound ",null,null,null,"Consultorio Jurídico",null,null,null,"Departamento de Posgrados de la Facultad de Derecho - Extensión Cartagena"]
[null,null,"Departamento de Derecho Civil","Departamento de Bienestar Universitario",null,null,null,"Departamento de Bienestar Universitario",null,null,null,"Departamento de Posgrados de la Facultad de Derecho - Extensión Cúcuta"]
[null,null,"Departamento de Derecho Comercial","Departamento de Publicaciones",null,null,null,"Departamento de Publicaciones",null,null,null,"Departamento de Posgrados de la Facultad de Derecho - Extensión Medellín"]
[null,null,"Departamento de Derecho Constitucional","Dirección Académica",null,null,null,"Dirección Administrativa",null,null,null,"Departamento de Posgrados de la Facultad de Derecho - Extensión Pasto"]
[null,null,"Departamento de Derecho de las Telecomunicaciones","Dirección Administrativa",null,null,null,"Dirección Administrativa / Jefatura de Compras y Proveeduría",null,null,null,"Departamento de Posgrados de la Facultad de Derecho - Extensión Pereira"]
[null,null,"Departamento de Derecho de los Negocios","Dirección de Admisiones, Registro y Control Académico",null,null,null,"Dirección Administrativa / Jefatura de Librería",null,null,null,"Departamento de Posgrados de la Facultad de Derecho - Extensión Tunja"]
[null,null,"Departamento de Derecho del Medio Ambiente","Dirección de Eventos",null,null,null,"Dirección Administrativa / Jefatura de Planta Fisica",null,null,null,"Departamento de Posgrados de la Facultad de Derecho - Extensión Villavicencio"]
[null,null,"Departamento de Derecho del Transporte y de la Infraestructura del Transporte","Dirección de Extensión Universitaria",null,null,null,"Dirección Administrativa / Jefatura de Seguridad"]
[null,null,"Departamento de Derecho Económico","Dirección de Innovación Educativa Digital",null,null,null,"Dirección Administrativa / Jefatura de Servicios de Apoyo"]
[null,null,"Departamento de Derecho Financiero y Bursátil","Dirección de Internacionalización y Relaciones Externas",null,null,null,"Dirección de Admisiones, Registro y Control Académico"]
[null,null,"Departamento de Derecho Fiscal","Dirección de Promoción y Mercadeo",null,null,null,"Dirección de Eventos"]
[null,null,"Departamento de Derecho Laboral y de Seguridad Social","Dirección de Talento Humano",null,null,null,"Dirección de Extensión"]
[null,null,"Departamento de Derecho Minero Energético","Dirección Financiera",null,null,null,"Dirección de Innovación Educativa Digital"]
[null,null,"Departamento de Derecho Penal","Dirección Administrativa / Jefatura de Compras y Proveeduría",null,null,null,"Dirección de Internacionalización"]
[null,null,"Departamento de Derecho Procesal","Dirección Administrativa / Jefatura de Planta Física",null,null,null,"Dirección de Promoción y Mercadeo"]
[null,null,"Departamento de Derecho Romano","Dirección Administrativa / Jefatura de Seguridad",null,null,null,"Dirección de Talento Humano"]
[null,null,"Departamento de la Propiedad Intelectual","Dirección Administrativa / Jefatura de Servicios de Apoyo",null,null,null,"Dirección de Talento Humano / Compensación y Registro"]
[null,null,"Departamento de Matemáticas","Dirección Académica / Oficina de Aseguramiento de la Calidad de la Secretaría General",null,null,null,"Dirección de Talento Humano / Contratación"]
[null,null,"Departamento de Posgrados de la Facultad de Derecho","Oficina de Comunicaciones y Prensa",null,null,null,"Dirección de Talento Humano / Desarrollo de Personal"]
[null,null,"Departamento de Riesgos y Seguros","Oficina de Egresados",null,null,null,"Dirección de Talento Humano / Seguridad y Salud en el Trabajo"]
[null,null,"Doctorado en Derecho","Oficina de Gestión de Riesgos, Cumplimiento y Procesos",null,null,null,"Dirección de Transformación Digital"]
[null,null,"Facultad de Administración de Empresas","Oficina Jurídica",null,null,null,"Dirección de Transformación Digital / Banner Mejoras Posgrado"]
[null,null,"Facultad de Administración de Empresas Turísticas y Hoteleras","Rectoría",null,null,null,"Dirección de Transformación Digital / Dirección"]
[null,null,"Facultad de Ciencias de la Educación","Lux non occidat: Museo y Archivo Histórico",null,null,null,"Dirección de Transformación Digital / Jefatura de Experiencia y Servicios"]
[null,null,"Facultad de Ciencias Sociales y Humanas","Secretaría General",null,null,null,"Dirección de Transformación Digital / Jefatura de Infraestructura y Seguridad"]
[null,null,"Facultad de Comunicación Social - Periodismo","Unidad de Género",null,null,null,"Dirección de Transformación Digital / Jefatura de Innovación Tecnológica"]
[null,null,"Facultad de Contaduría Pública","Dirección Financiera / Contabilidad",null,null,null,"Dirección de Transformación Digital / Proyecto CRM"]
[null,null,"Facultad de Derecho","Dirección Financiera / Facturación y Apoyo Financiero",null,null,null,"Dirección de Transformación Digital / SAP Nube AWS"]
[null,null,"Facultad de Economía","Dirección Financiera / Planeación Financiera y Gestión de la Información",null,null,null,"Dirección de Transformación Digital / Servicios de Aplicaciones"]
[null,null,"Facultad de Estudios del Patrimonio Cultural","Dirección Financiera / Presupuesto, Análisis y Control Financiero",null,null,null,"Dirección Financiera"]
[null,null,"Facultad de Finanzas, Gobierno y Relaciones Internacionales","Dirección Financiera / Tesorería",null,null,null,"Dirección Financiera / Contabilidad"]
[null,null,"Instituto de Estudios Interdisciplinarios","Dirección de Promoción y Mercadeo / Centro de Información y Soluciones Externadista - CISE",null,null,null,"Dirección Financiera / Facturación y Apoyo Financiero"]
[null,null,"Observatorio de Sociedad, Gobierno y Tecnologías de la Información","Dirección Administrativa / Jefatura de Librería",null,null,null,"Dirección Financiera / Planeación Financiera y Gestión de la Información"]
[null,null,"Secretaría Académica de la Facultad de Derecho","Dirección de Talento Humano / Compensación y Registro",null,null,null,"Dirección Financiera / Presupuesto, Análisis y Control Financiero"]
[null,null,"Unidad de Apoyo a la Investigación","Dirección de Talento Humano / Contratación",null,null,null,"Dirección Financiera / Tesorería"]
[null,null,"Departamento de Posgrados de la Facultad de Derecho - Extensión Barranquilla","Dirección de Talento Humano / Desarrollo de Personal",null,null,null,"Gobierno de datos y gestión de la información digital"]
[null,null,"Departamento de Posgrados de la Facultad de Derecho - Extensión Bucaramanga","Dirección de Talento Humano / Seguridad y Salud en el Trabajo",null,null,null,"Lux non occidat: Museo y Archivo Históric"]
[null,null,"Departamento de Posgrados de la Facultad de Derecho - Extensión Cali","Dirección de Transformación Digital",null,null,null,"Oficina de Aseguramiento de la Calidad de la Secretaría General"]
[null,null,"Departamento de Posgrados de la Facultad de Derecho - Extensión Cartagena","Dirección de Transformación Digital / Banner Mejoras Posgrado",null,null,null,"Oficina de Comunicaciones"]
[null,null,"Departamento de Posgrados de la Facultad de Derecho - Extensión Cúcuta","Dirección de Transformación Digital / Dirección",null,null,null,"Oficina de Egresados"]
[null,null,"Departamento de Posgrados de la Facultad de Derecho - Extensión Medellín","Dirección de Transformación Digital / Jefatura de Experiencia y Servicios",null,null,null,"Oficina Jurídica"]
[null,null,"Departamento de Posgrados de la Facultad de Derecho - Extensión Pasto","Dirección de Transformación Digital / Jefatura de Infraestructura y Seguridad",null,null,null,"Rectoría"]
[null,null,"Departamento de Posgrados de la Facultad de Derecho - Extensión Pereira","Dirección de Transformación Digital / Jefatura de Innovación Tecnológica",null,null,null,"Secretaría General"]
[null,null,"Departamento de Posgrados de la Facultad de Derecho - Extensión Tunja","Dirección de Transformación Digital / Servicios de Aplicaciones",null,null,null,"Unidad de Género"]
[null,null,"Departamento de Posgrados de la Facultad de Derecho - Extensión Villavicencio","Secretaría General / Gobierno de datos y gestión de la información digital",null,null,null,"Oficina de Gestión de Riesgos, Cumplimiento y Procesos – RCP"]

{"sheet":"Hoja3","index":3,"n_rows":157,"n_cols":8,"rows_kept":157,"cut":false,"hidden":true,"merged":[]}
[]
["fff",null,null,"opciones","Si","No","Seleccione…"]
["2021-01-01",null,null,"Seleccione…","Si"]
["2021-01-11",null,null,"Si.","No"]
["2021-03-22",null,null,"No."]
["2021-03-28"]
["2021-03-29"]
["2021-03-30"]
["2021-03-31"]
["2021-04-01"]
["2021-04-02"]
["2021-04-04"]
["2021-05-01"]
["2021-05-17"]
["2021-06-07"]
["2021-06-14"]
["2021-07-05"]
["2021-07-20"]
["2021-08-07"]
["2021-08-16"]
["2021-10-18"]
["2021-11-01"]
["2021-11-15"]
["2021-12-08"]
["2021-12-25"]
["2021-12-20"]
["2021-12-21"]
["2021-12-22"]
["2021-12-23"]
["2021-12-24"]
["2021-12-27"]
["2021-12-28"]
["2021-12-29"]
["2021-12-30"]
["2021-12-31"]
["2022-01-03"]
["2022-01-04"]
["2022-01-05"]
["2022-01-06"]
["2022-01-07"]
["2022-01-01"]
["2022-01-10"]
["2022-03-21"]
["2022-04-10"]
["2022-04-11"]
["2022-04-12"]
["2022-04-13"]
["2022-04-14"]
["2022-04-15"]
["2022-04-17"]
["2022-05-01"]
["2022-05-30"]
["2022-06-20"]
["2022-06-27"]
["2022-07-04"]
["2022-07-20"]
["2022-08-07"]
["2022-08-15"]
["2022-10-17"]
["2022-11-07"]
["2022-11-14"]
["2022-12-08"]
["2022-12-25"]
["2023-01-01"]
["2023-01-09"]
["2023-03-20"]
["2023-04-02"]
["2023-04-03"]
["2023-04-04"]
["2023-04-05"]
["2023-04-06"]
["2023-04-07"]
["2023-04-09"]
["2023-05-01"]
["2023-05-22"]
["2023-06-12"]
["2023-06-19"]
["2023-07-03"]
["2023-07-20"]
["2023-08-07"]
["2023-08-21"]
["2023-10-16"]
["2023-11-06"]
["2023-11-13"]
["2023-12-08"]
["2023-12-25"]
["2024-01-01"]
["2024-01-08"]
["2024-03-25"]
["2024-03-24"]
["2024-03-25"]
["2024-03-26"]
["2024-03-27"]
["2024-03-28"]
["2024-03-29"]
["2024-03-31"]
["2024-05-01"]
["2024-05-13"]
["2024-06-03"]
["2024-06-10"]
["2024-07-01"]
["2024-07-20"]
["2024-08-07"]
["2024-08-19"]
["2024-10-14"]
["2024-11-04"]
["2024-11-11"]
["2024-12-08",null,null,"2024-12-08"]
["2024-12-25",null,null,"2024-12-14"]
["2025-01-01",null,null,"2024-12-15"]
["2025-01-06",null,null,"2024-12-21"]
["2025-03-24",null,null,"2024-12-22"]
["2025-04-13",null,null,"2024-12-25"]
["2025-04-14",null,null,"2024-12-28"]
["2025-04-15",null,null,"2024-12-29"]
["2025-04-16",null,null,"2025-01-01"]
["2025-04-17",null,null,"2025-01-04"]
["2025-04-18",null,null,"2025-01-05"]
["2025-04-20",null,null,"2025-01-06"]
["2025-05-01",null,null,"2025-01-11"]
["2025-06-02",null,null,"2025-01-12"]
["2025-06-23",null,null,"2025-01-18"]
["2025-06-30",null,null,"2025-01-19"]
["2025-06-30",null,null,"2025-01-25"]
["2025-07-20",null,null,"2025-01-26"]
["2025-08-07"]
["2025-08-18"]
["2025-10-13"]
["2025-11-03"]
["2025-11-17"]
["2025-12-08"]
["2025-12-25"]
["2026-01-01"]
["2026-01-06"]
["2026-01-12"]
["2026-03-23"]
["2026-03-29"]
["2026-03-30"]
["2026-03-31"]
["2026-04-01"]
["2026-04-02"]
["2026-04-03",null,null,null,null,null,"=SI(O(DIAS.LAB.INTL(E5;F5;1;Hoja3!$A$3:$A$157)<6;(DIAS.LAB.INTL(E5;F5;1;Hoja3!$A$3:$A$157)>15));\"\";DIAS.LAB.INTL(E5;F5;1;Hoja3!$A$3:$A$157))"]
["2026-04-05"]
["2026-05-01",null,null,null,null,"2022-12-23","2023-01-03",{"$f":"+NETWORKDAYS.INTL(F144,G144,1,$A$3:$A$157)","v":8}]
["2026-05-18"]
["2026-06-08"]
["2026-06-15"]
["2026-06-29",null,null,null,null,"2022-12-23","03/01/223",{"$f":"+NETWORKDAYS.INTL(F148,G148,1,$A$3:$A$157)","v":{"$error":"#VALUE!"}}]
["2026-07-20"]
["2026-08-07"]
["2026-08-17"]
["2026-10-12"]
["2026-11-02"]
["2026-11-16"]
["2026-12-08"]
["2026-12-25"]
["2027-01-01"]